Cogmind - Beta 16 @@@ ROGUE MODE // 2026.01.27 @ 20:09:04 Player: applejuice Result: Destroyed self with Missile Launcher Performance ------------- Evolutions (2) 1000 Regions Visited (3) 600 Robots Destroyed (63) 315 Value Destroyed (1768) 1768 Prototype IDs (2) 40 Alien Tech Used (0) 0 Bonus (0) 0 TOTAL SCORE: 3723 Bonus ------- None Cogmind --------- Core Integrity 0/550 Matter 131/400 Energy 271/280 System Corruption 0% Temperature Cool (0) Movement Core (350) Ox6 Location -8/Materials Parts ------- > --- POWER (1) -------- Heavy Ion Engine > --- PROPULSION (4) --- Compact Wheel > --- UTILITY (4) ------ Medium Matter Pod Improved Signal Interpreter > --- WEAPON (2) ------- Shotgun Missile Launcher > --- INVENTORY (5) ---- Hacking Suite System Shield Particle Gun Katana Peak State ------------ > --- POWER ------------ Heavy Ion Engine > --- PROPULSION ------- Aluminum Leg Aluminum Leg Carbon-fiber Leg Compact Wheel > --- UTILITY ---------- Small Storage Unit Medium Matter Pod Improved Sensor Array Improved Signal Interpreter > --- WEAPON ----------- High-powered Shotgun Flak Cannon > --- INVENTORY -------- Improved Ion Engine Hacking Suite System Shield Particle Gun Heavy Assault Rifle Shotgun Missile Launcher Katana [Rating: 25] Favorites ----------- Power Heavy Ion Engine Engine Heavy Ion Engine Power Core Light Nuclear Core Propulsion Aluminum Leg Leg Aluminum Leg Wheel Wheel Utility Small Storage Unit Device Heat Sink Storage Small Storage Unit Processor Improved Signal Interpreter Weapon Heavy Assault Rifle Energy Gun Beam Rifle Ballistic Gun Heavy Assault Rifle Ballistic Cannon Flak Cannon Launcher Missile Launcher Slashing Weapon Mining Claw Build | -11 -10 -9 -8 ------- Run | Yrd Mat Mat Mat Slots Evolved 4 | . . 2 2 Power . | . . . . Propulsion 2 | . . 1 1 Utility 2 | . . 1 1 Weapon . | . . . . Parts Attached 54 | 7 5 16 26 Power 9 | 1 2 4 2 Engine 8 | 1 2 4 1 Core 1 | . . . 1 Reactor . | . . . . Propulsion 20 | 2 2 8 8 Treads . | . . . . Leg 17 | 2 2 8 5 Wheel 3 | . . . 3 Hover . | . . . . Flight . | . . . . Utility 8 | 1 1 1 5 Device 5 | . 1 1 3 Storage 2 | 1 . . 1 Processor 1 | . . . 1 Hackware . | . . . . Protection . | . . . . Artifact . | . . . . Weapon 17 | 3 . 3 11 Energy Gun 5 | 1 . 1 3 Energy Cannon . | . . . . Ballistic Gun 7 | 2 . 2 3 Ballistic Cannon 3 | . . . 3 Launcher 1 | . . . 1 Special Weapon . | . . . . Impact Weapon . | . . . . Slashing Weapon 1 | . . . 1 Piercing Weapon . | . . . . Special Melee Weapon . | . . . . Unidentified Prototypes 2 | . . 1 1 Corrupted Parts 1 | . . 1 . System Corruption 1 | . . 1 . Parts Lost 32 | . 1 9 22 Power 5 | . 1 2 2 Propulsion 14 | . . 3 11 Utility 4 | . . . 4 Weapon 9 | . . 4 5 Highest Loss Streak 11 | . 1 7 11 To Critical Strikes . | . . . . Average Backups 6 | . 2 6 7 Power . | . . . . Propulsion 1 | . . 2 . Utility 1 | . . 1 1 Weapon 3 | . 1 1 4 Tool/Special . | . . . . Unused Backups 9 | . . . 9 Power 1 | . . . 1 Propulsion . | . . . . Utility 3 | . . . 3 Weapon 5 | . . . 5 Tool/Special . | . . . . Average Slot Usage (%) 85 | . 84 94 82 Engine 8 | . 12 8 7 Leg 27 | . 28 32 25 Wheel 2 | . . . 3 Device 12 | . . 20 12 Storage 13 | . 14 11 14 Processor 1 | . . . 2 Energy Gun 1 | . . 2 1 Ballistic Gun 14 | . 28 19 9 Ballistic Cannon 3 | . . . 5 Peak Build Rating 25 | 6 7 15 25 Average Rating 14 | 4 5 11 18 On Entrance 6 | . 6 7 13 Avg Prop Armor Cover (%) 6 | . . 15 5 Naked Turns . | . . . . Heaviest Build 27 | 11 14 21 27 Greatest Support 46 | 20 20 33 46 Greatest Overweight (x) 3 | 3 . 1 2 Average Overweight (x) . | . . . . Largest Inventory Capacity 8 | 8 8 8 8 Average Capacity 7 | 7 8 8 7 Most Carried 8 | 1 7 8 8 Average Carried 6 | . 2 6 7 Final Capacity 8 | 8 8 8 5 Final Carried 8 | 1 7 8 4 Class Distribution -------------------- 54% | Mutant 45% | Scavenger-Mutant Dominant Class ---------------- Mutant | -10/Materials Scavenger-Mutant | -9/Materials Mutant | -8/Materials Resources | -11 -10 -9 -8 ----------- Run | Yrd Mat Mat Mat Matter Collected 1782 | 217 276 396 893 Remotely . | . . . . Salvage Created 2020 | . 444 587 989 Parts 124 | . 30 47 47 Haulers Intercepted 1 | . . . 1 Recyclers Shooed 4 | . 2 1 1 Parts Field Recycled . | . . . . Retrieved Matter . | . . . . Parts Self-Destructed . | . . . . Prevented . | . . . . Parts Restored . | . . . . Kills | -11 -10 -9 -8 ------- Run | Yrd Mat Mat Mat Combat Hostiles Destroyed 47 | . 10 12 25 Guns 36 | . 10 11 15 Cannons 9 | . . . 9 AOE 2 | . . 1 1 Classes Destroyed 11 | . 4 5 2 Worker 3 | . . . 3 Builder 1 | . . 1 . Tunneler 1 | . . 1 . Hauler 1 | . . . 1 Recycler 5 | . 3 1 1 Operator 2 | . . 1 1 Watcher 3 | . 1 . 2 Swarmer 14 | . 6 3 5 Grunt 25 | . 4 5 16 Duelist 3 | . . 2 1 Sentry 5 | . . 2 3 Best Kill Streak 8 | . 8 3 6 Combat Bots Only 5 | . 5 3 3 Max Kills in Single Turn 1 | . 1 1 1 Gunslinging . | . . . . Exploded 1 | . . 1 1 Melee . | . . . . Uniques/NPCs Destroyed . | . . . . Combat | -11 -10 -9 -8 -------- Run | Yrd Mat Mat Mat Hostile Shots Fired 393 | . 74 101 218 Missed 101 | . 23 33 45 Hits 292 | . 51 68 173 Melee 4 | . . 4 . Projectile 288 | . 51 64 173 Critical Strikes 7 | . . 1 6 Damage Taken 4021 | . 461 993 2567 Core 887 | . 118 213 556 Absorbed by Shields . | . . . . Core Remaining (%) 66 | 100 52 46 . Volleys Fired 232 | . 47 63 122 Largest 2 | . 2 2 2 Hottest 121 | . 40 79 121 Shots Fired 434 | . 94 121 219 Gun 342 | . 94 121 127 Cannon 91 | . . . 91 Launcher 1 | . . . 1 Special . | . . . . Kinetic 402 | . 94 112 196 Thermal 26 | . . 4 22 Explosive 1 | . . . 1 Electromagnetic 5 | . . 5 . Robot Hit Streak 19 | . 8 19 19 Robot Miss Streak 6 | . 4 4 6 Penetration Max . | . . . . Secondary Targets 4 | . 2 1 1 Max Gunslinging Chain 1 | . 1 1 1 Shots Hit Robots 295 | . 56 73 166 Core Hits 142 | . 24 26 92 Critical Kills . | . . . . Critical Parts Destroyed 1 | . . . 1 Critical Strikes 4 | . . . 4 Burn 1 | . . . 1 Destroy 1 | . . . 1 Blast 2 | . . . 2 Melee Attacks 1 | . . . 1 Impact . | . . . . Slashing 1 | . . . 1 Piercing . | . . . . Sneak Attacks . | . . . . Combat Hostiles . | . . . . Follow-up Attacks . | . . . . Damage Inflicted 4720 | . 589 1215 2916 Guns 3314 | . 589 1087 1638 Cannons 1185 | . . . 1185 Explosions 174 | . . 119 55 Melee . | . . . . Ramming 47 | . . 9 38 Kinetic 4167 | . 589 1004 2574 Thermal 354 | . . 105 249 Explosive 55 | . . . 55 Electromagnetic 97 | . . 97 . Impact . | . . . . Slashing . | . . . . Piercing . | . . . . Highest Corruption 1 | . . 1 . Average Corruption 1 | . . 1 . Corruption Purged . | . . . . Corruption Blocked . | . . . . Effects 4 | . . 4 . Message Errors 1 | . . 1 . Energy Discharges 1 | . . 1 . Data Loss (minor) 1 | . . 1 . Alerts 1 | . . 1 . Overload Shots . | . . . . Overflow Damage 57 | . . . 57 Projectiles . | . . . . Explosions 51 | . . . 51 Melee 6 | . . . 6 Knockbacks 36 | . . . 36 Impact . | . . . . Kinetic 31 | . . . 31 Secondary 5 | . . . 5 Self-Inflicted Damage 128 | . . 72 56 Shots 3 | . . 2 1 Rammed . | . . . . Targets Rammed 9 | . . 3 6 Kicked 9 | . . 3 6 Crushed . | . . . . Highest Temperature 360 | . 12 . 360 Average Temperature 71 | . 4 . 87 Received Heat Transfer 1734 | . 132 297 1305 Effects 1 | . . . 1 Energy Bleed 1 | . . . 1 Siege Activations . | . . . . Martial Activations . | . . . . Shielding Activations . | . . . . Robots Disrupted . | . . . . Combat Hostiles . | . . . . Robots Corrupted 1 | . . . 1 Combat Hostiles . | . . . . Parts Fried 3 | . . 1 2 Impact Corruptions 1 | . . . 1 Robots Melted . | . . . . Combat Hostiles . | . . . . Parts Melted 2 | . . . 2 Heat Transferred 877 | . . 174 703 Parts Sabotaged . | . . . . Parts Stolen . | . . . . Parts Stripped . | . . . . Power Chain Reactions 1 | . . 1 . Alert | -11 -10 -9 -8 ------- Run | Yrd Mat Mat Mat Maximum Alert Level . | . . . . Low Security (%) 100 | 100 100 100 100 Level 1 . | . . . . Level 2 . | . . . . Level 3 . | . . . . Level 4 . | . . . . Level 5 . | . . . . High Security . | . . . . Max Security . | . . . . Peak Influence 160 | . 160 141 148 Initial 63 | . . 63 43 Average 67 | . 64 69 70 Influence Increases 1500 | . 277 385 838 Destroy 0b10 Robot/C 940 | . 200 240 500 Destroy 0b10 Robot/NC 80 | . 20 20 40 Destroy Leader 228 | . 42 70 116 Successful Hack 20 | . . 6 14 Disable Machine 60 | . . 30 30 Destroy Structure 7 | . . 4 3 Lose Combat Pursuer 165 | . 15 15 135 Influence Decreases 1376 | . 127 431 818 Entered New Map 148 | . . 87 61 Time Decay 813 | . 117 254 442 Lost Part 270 | . 10 90 170 Purge Threat 145 | . . . 145 Squads Dispatched 8 | . 2 2 4 Investigation 3 | . 2 . 1 Extermination . | . . . . Reinforcement 5 | . . 2 3 Assault . | . . . . Garrison . | . . . . Intercept . | . . . . Searches Triggered . | . . . . Construction Impeded 1 | . . 1 . Haulers Reinforced . | . . . . Active Scanning Responses . | . . . . Cargo Convoy Interrupts . | . . . . Stealth | -11 -10 -9 -8 --------- Run | Yrd Mat Mat Mat Distress Signals 7 | . . 2 5 Communications Jammed . | . . . . Distress Signals . | . . . . Times Spotted 81 | . 14 19 48 Peak Tracking Total 10 | . 4 7 10 Tactical Retreats 10 | . 1 1 8 Traps | -11 -10 -9 -8 ------- Run | Yrd Mat Mat Mat Traps Triggered 3 | . 2 . 1 Indirectly . | . . . . Trap Hack Attempts . | . . . . Triggered . | . . . . Disarmed . | . . . . Reprogrammed . | . . . . Reused . | . . . . Traps Extracted . | . . . . Installed . | . . . . Triggered . | . . . . Machines | -11 -10 -9 -8 ---------- Run | Yrd Mat Mat Mat Machines Disabled 4 | . . 2 2 Max in Single Turn 2 | . . 2 1 Garrison Access 1 | . . . 1 Machines Repaired . | . . . . Machines Dismantled . | . . . . Machines Sabotaged . | . . . . Overloaded Fab Kills . | . . . . Hacking | -11 -10 -9 -8 --------- Run | Yrd Mat Mat Mat Machines Accessed 9 | . 1 2 6 Terminals 6 | . 1 1 4 Fabricators . | . . . . Repair Stations . | . . . . Recycling Units . | . . . . Scanalyzers 2 | . . 1 1 Garrison Access 1 | . . . 1 Total Hacks 31 | . 3 11 17 Successful 16 | . . 6 10 Failed 14 | . 3 4 7 Catastrophic 3 | . . . 3 Database Lockouts 1 | . . 1 . Manual 18 | . 3 4 11 Terminals 22 | . 3 7 12 Fabricators . | . . . . Repair Stations . | . . . . Recycling Units . | . . . . Scanalyzers 8 | . . 4 4 Garrison Access 1 | . . . 1 Terminal Hacks 5 | . . 2 3 Record 1 | . . 1 . Emergency Access Points 1 | . . . 1 Terminal Index 2 | . . 1 1 Unreport Threat 1 | . . . 1 Fabricator Hacks . | . . . . Repair Station Hacks . | . . . . Recycling Unit Hacks . | . . . . Scanalyzer 6 | . . 3 3 Insert Component 1 | . . 1 . Analyze 1 | . . 1 . Retrieve Study 4 | . . 1 3 Garrison Access Hacks 1 | . . . 1 Seal Access 1 | . . . 1 Unauthorized Hacks 4 | . . 1 3 Terminals 4 | . . 1 3 Botnet 4 | . . 1 3 Fabricators . | . . . . Repair Stations . | . . . . Recycling Units . | . . . . Scanalyzers . | . . . . Garrison Access . | . . . . Data Cores Recovered . | . . . . Used . | . . . . Hacking Detections 6 | . 1 1 4 Full Trace Events . | . . . . Feedback Events . | . . . . Feedback Blocked . | . . . . Robot Schematics Acquired . | . . . . Robots Built . | . . . . Authchips . | . . . . Time . | . . . . Total Robot Build Rating . | . . . . Part Schematics Acquired 1 | . . 1 . Parts Built . | . . . . Authchips . | . . . . Time . | . . . . Total Part Build Rating . | . . . . Part Studies Acquired 4 | . . 1 3 Parts Repaired . | . . . . Time . | . . . . Parts Recycled . | . . . . Recycled Matter . | . . . . Retrieved Matter . | . . . . Retrieved Components . | . . . . Parts Scanalyzed 1 | . . 1 . Part Schematics Acquired 1 | . . 1 . Parts Damaged . | . . . . Bothacking | -11 -10 -9 -8 ------------ Run | Yrd Mat Mat Mat Used RIF Installer . | . . . . Robots Hacked . | . . . . Non-combat . | . . . . Combat . | . . . . Robot Hacks Applied . | . . . . Relay Couplers Released . | . . . . Fabnet Peak Effective % . | . . . . Robots Rewired . | . . . . Allies Hacked . | . . . . Hacks Repelled . | . . . . Allies | -11 -10 -9 -8 -------- Run | Yrd Mat Mat Mat Total Allies . | . . . . Largest Group . | . . . . Highest-Rated Group . | . . . . Highest-Rated Ally . | . . . . Total Orders . | . . . . Ally Attacks . | . . . . Total Damage . | . . . . Kills . | . . . . Allies Corrupted . | . . . . Allies Melted . | . . . . Intel | -11 -10 -9 -8 ------- Run | Yrd Mat Mat Mat Active Infowar (turns) 741 | . . . 741 Sensors 412 | . . . 412 Traps 329 | . . . 329 Robot Analysis Total . | . . . . Derelict Logs Recovered . | . . . . Drone Launches . | . . . . Drone Recoveries . | . . . . Exploration | -11 -10 -9 -8 ------------- Run | Yrd Mat Mat Mat Turns Passed 2342 | 52 352 549 1389 Spaces Moved 1150 | 34 154 254 708 Core 9 | 9 . . . Treads . | . . . . Legs 1125 | 25 154 254 692 Wheels 16 | . . . 16 Hover . | . . . . Flight . | . . . . Fastest Speed 50 | 50 120 110 85 Average Speed 119 | 124 120 121 118 Slowest Speed 245 | 200 120 190 245 Overloaded Moves . | . . . . Propulsion Burnouts . | . . . . Robots Hopped . | . . . . Potential Cave-ins . | . . . . Cave-ins Triggered . | . . . . Exploration Rate (%) 32 | 4 45 33 48 Regions Visited 3 Branch Regions . Pre-discovered Areas . | . . . . Known Exits Taken . | . . . . Unknown Exits Taken 3 | 1 1 1 . Scrap Searched . | . . . . Spaces Dug . | . . . . Terrain Destroyed 3 | . . 3 . Melee . | . . . . Projectile . | . . . . AOE 3 | . . 3 . Terrain Rammed . | . . . . Walls Destroyed . | . . . . Machines Disabled . | . . . . Actions | -11 -10 -9 -8 --------- Run | Yrd Mat Mat Mat Total 1686 | 41 234 374 1037 Wait 185 | . 25 23 137 Move 1147 | 33 153 253 708 Hop . | . . . . Pick Up 20 | . 3 5 12 Fast Attach 34 | 7 3 6 18 Attach 17 | . . 7 10 Detach 9 | 1 1 2 5 Swap 14 | . 2 7 5 Drop 18 | . . 5 13 Fire 232 | . 47 63 122 Melee 1 | . . . 1 Ram . | . . . . Kick 9 | . . 3 6 Crush . | . . . . Escape Stasis . | . . . . Rewire . | . . . . Trap . | . . . . Miscellaneous . | . . . . Route ------- -11/Scrapyard -10/Materials -9/Materials -8/Materials History --------- Turn | Location | Event 13 | -11/Scrapyard | Discovered new exit (range 16) 53 | -11/Scrapyard | Entered Materials 318 | -10/Materials | Build established: Mutant 330 | -10/Materials | Discovered new exit (range 11) 405 | -10/Materials | Entered another Materials area 405 | -9/Materials | Evolved 2 slots: Propulsion x1, Utility x1 505 | -9/Materials | Lost 7 parts (1p3n3w) 677 | -9/Materials | Build established: Scavenger-Mutant 723 | -9/Materials | Central database locked down 736 | -9/Materials | Discovered new exit (range 16) 854 | -9/Materials | Core integrity fell below 50% 954 | -9/Materials | Entered another Materials area 954 | -8/Materials | Evolved 2 slots: Propulsion x1, Utility x1 1358 | -8/Materials | Core integrity fell below 50% 1379 | -8/Materials | Lost 11 parts (1p6n2u2w) 1876 | -8/Materials | Build established: Mutant 2318 | -8/Materials | Core integrity fell below 20% 2343 | -8/Materials | Destroyed self with Missile Launcher Last Messages --------------- 02316_ K-01 Serf cleans the Terminal. 02320_ G-47 Trooper knocked back. 02322_ K-01 Serf collects debris. 02323_ Critical hit (Burn: +37). 02324_ G-47 Trooper knocked back. 02325_ K-01 Serf collects debris. 02325_ Sml. Storage Unit destroyed. 02327_ G-47 Trooper destroyed. 02329_ K-01 Serf collects debris. 02332_ W-25 Informer sends out distress signal. 02332_ K-01 Serf collects debris. 02332_ Acquired Shotgun. 02334_ G-47 Trooper knocked back. 02338_ K-01 Serf collects debris. 02339_ Flak Cannon destroyed. 02341_ K-01 Serf collects debris. 02341_ Carbon-fiber Leg destroyed. 02343_ G-47 Trooper destroyed. 02343_ Imp. Sensor Array destroyed. 02343_ Destroyed Imp. Sensor Array. Map ----- +----------------------------------------------------+ | | | | | | | ????????????????????????########?????????????????? | | ????????????????????????# #?????????????????? | | ????????????????????#####[ ! #?????????????????? | | ##################### # #?????????????????? | | " + #?????????????????? | | ##################### # "T" #?????????????????? | | #???????????????## ## """ #?????????????????? | | "T" #????????????????# #########?????????????????? | | #???????????????# #?????????????????????????? | | [ ##???????????????# #?????????????????????????? | | #####????????????????# #?????????????????????????? | | ?????????????????????# #?????????????????????????? | | ?????????????????????# #?????????????????????????? | | ??????????????????####+#####?????????????????????? | | ??????????????????# ! #?????????????????????? | | ??????????????????# k!#?????????????????????? | | ??????????????????# % #?????????????????????? | | ??????????????????# """ ##????????????????????? | | ??????????????????#g """ +?????????????????????? | | ??????????????????# """ #?????????????????????? | | ??????????????????# """% !#?????????????????????? | | ??????????????????# ""g[* #?????????????????????? | | ??????????????????# =kw%g@ #?????????????????????? | | ??????????????????#####/####?????????????????????? | | ?????????????????????#%%!#???????????????????????? | | ?????????????????????# [ #???????????????????????? | | ?????????????????????# #???????????????????????? | | ???????????????????? + +???????????????????????? | | ??????????????????? # #???????????????????????? | | ?????????????????? # #???????????????????????? | | ?????????????????###?# #???????????????????????? | | ????????????????????? #???????????????????????? | | ????????????????????? "???????????????????????? | | ???????????????????? T???????????????????????? | | ????????????????????^ "???????????????????????? | | ???????????????????? #???????????????????????? | | ??????????????????? """ "???????????????????????? | | ??????????????????? """ ???????????????????????? | | ??????????????????????? ????????????????????????? | | ??????????????????????? ????????????????????????? | | ?????????????????????????????????????????????????? | | ?????????????????????????????????????????????????? | | ?????????????????????????????????????????????????? | | ?????????????????????????????????????????????????? | | ?????????????????????????????????????????????????? | | ?????????????????????????????????????????????????? | | ?????????????????????????????????????????????????? | +----------------------------------------------------+ Best States ------------- Heat Dissipation 51 Energy Generation 14 Energy Capacity 280 Matter Stores 347 Matter Capacity 400 Sight Range 16 Robot Scan Range 15 Terrain Scan Density 10 Evasion (%) 55 Item Schematics ----------------- Hvy. Assault Rifle | -9/Materials | Scanalyzed Robot Schematics ------------------ None Fabricated ------------ Nothing Repaired ---------- Nothing Studied --------- Aluminum Leg | -9/Materials | Hacked Hvy. Assault Rifle | -8/Materials | Hacked Imp. Aluminum Leg | -8/Materials | Hacked Wheel | -8/Materials | Hacked Alien Tech Used ----------------- None Achievements -------------- None Challenges ------------ None Game ------ Seed MasterPitchforkSword Manual? 0 Play Time 00:23:23 Cumulative 35.2 hours Start 2026.01.27 @ 13:06:07 End 2026.01.27 @ 20:09:04 Sessions 3 Manual Loads 0 Difficulty Rogue Special Mode None Game No. 42 Rogue 42 Adventurer 0 Explorer 0 Win Type - Total 0 Types 0/0/0/0/0/0/0/0/0/0 Lore% 30 Gallery% 32 Achievement% 27 Wizard Run 0 Options --------- Layout 1 ASCII 0 Keyboard 1 Movement Numpad Keybinds 0 Fullscreen 1 Font 48/Smallcaps Map View 50x35 Zoom Use 0% Tactical HUD 1 Map Filters NONE Filters NONE Steam 1 RUN: 6d1003d9-c0e5-4612-b68b-1c83ab9eec87